fUSD/lending_fUSD_20260626
["ID","MTS","AMOUNT","RATE_DAILY","PERIOD"]
[426479477,1782444644000,-500.0,0.00011231,2]
[426479476,1782444644000,-150.0,0.00011231,2]
[426479473,1782444644000,-500.0,0.00011231,2]
[426479451,1782444644000,-500.0,0.00011231,2]
[426479463,1782444644000,-500.0,0.00011231,2]
[426479456,1782444644000,-500.0,0.00011231,2]
[426479422,1782444644000,-237.04094922,0.00011231,2]
[426479445,1782444644000,-500.0,0.00011231,2]
[426479475,1782444644000,-517.07276888,0.00011231,2]
[426479429,1782444644000,-500.0,0.00011231,2]
[426479423,1782444644000,-500.0,0.00011231,2]
[426479424,1782444644000,-500.0,0.00011231,2]
[426479421,1782444644000,-500.0,0.00011231,2]
[426479425,1782444644000,-500.0,0.00011231,2]
[426479426,1782444644000,-500.0,0.00011231,2]
[426479427,1782444644000,-500.0,0.00011231,2]
[426479428,1782444644000,-342.030831,0.00011231,2]
[426479430,1782444644000,-500.0,0.00011231,2]
[426479432,1782444644000,-500.0,0.00011231,2]
[426479443,1782444644000,-262.0005398,0.00011231,2]
[426479434,1782444644000,-500.0,0.00011231,2]
[426479452,1782444644000,-262.85348933,0.00011231,2]
[426479442,1782444644000,-500.0,0.00011231,2]
[426479431,1782444644000,-500.0,0.00011231,2]
[426479435,1782444644000,-500.0,0.00011231,2]
[426479436,1782444644000,-500.0,0.00011231,2]
[426479438,1782444644000,-500.0,0.00011231,2]
[426479441,1782444644000,-150.0,0.00011231,2]
[426479439,1782444644000,-150.0,0.00011231,2]
[426479437,1782444644000,-150.0,0.00011231,2]
[426479440,1782444644000,-500.0,0.00011231,2]
[426479444,1782444644000,-468.90433553,0.00011231,2]
[426479450,1782444644000,-500.0,0.00011231,2]
[426479447,1782444644000,-500.0,0.00011231,2]
[426479448,1782444644000,-500.0,0.00011231,2]
[426479446,1782444644000,-500.0,0.00011231,2]
[426479433,1782444644000,-500.0,0.00011231,2]
[426479474,1782444644000,-191.46423335,0.00011231,2]
[426479420,1782444644000,-500.0,0.00011231,2]
[426479488,1782444644000,-500.0,0.00011753,2]
[426479519,1782444644000,-298.62831362,0.00012697,2]
[426479515,1782444644000,-165.90461868,0.00012528,2]
[426479516,1782444644000,-162.80467424,0.00012528,2]
[426479522,1782444644000,-500.0,0.00012712,2]
[426479521,1782444644000,-16511.02625704,0.00012704,2]
[426479531,1782444644000,-151.0,0.00012836,2]
[426479527,1782444644000,-151.0,0.00012836,2]
[426479529,1782444644000,-151.0,0.00012836,2]
[426479526,1782444644000,-151.0,0.00012836,2]
[426479524,1782444644000,-151.0,0.00012732,2]
[426479525,1782444644000,-300.0,0.00012732,2]
[426479528,1782444644000,-151.0,0.00012836,2]
[426479530,1782444644000,-151.0,0.00012836,2]
[426479523,1782444644000,-167.31875847,0.00012732,2]
[426479532,1782444644000,-151.0,0.00012836,2]
[426479534,1782444644000,-151.0,0.00012836,2]
[426479544,1782444644000,-289.89181448,0.00012836,2]
[426479533,1782444644000,-151.0,0.00012836,2]
[426479535,1782444644000,-151.0,0.00012836,2]
[426479537,1782444644000,-151.0,0.00012836,2]
[426479542,1782444644000,-151.0,0.00012836,2]
[426479539,1782444644000,-151.0,0.00012836,2]
[426479538,1782444644000,-151.0,0.00012836,2]
[426479536,1782444644000,-151.0,0.00012836,2]
[426479541,1782444644000,-151.0,0.00012836,2]
[426479543,1782444644000,-151.0,0.00012836,2]
[426479540,1782444644000,-151.0,0.00012836,2]
[426479483,1782444644000,-166.66,0.00011507,2]
[426479546,1782444644000,-15000.0,0.0001285,2]
[426479518,1782444644000,-10444.24738643,0.00012694,2]
[426479517,1782444644000,-500.0,0.00012575,2]
[426479545,1782444644000,-6111.0,0.00012849,2]
[426479513,1782444644000,-1003.34564146,0.00012514,2]
[426479514,1782444644000,-250.0,0.00012516,2]
[426479487,1782444644000,-24749.6525,0.00011702,2]
[426479489,1782444644000,-151.0,0.00011824,2]
[426479485,1782444644000,-16511.02625704,0.00011605,2]
[426479484,1782444644000,-10444.24738643,0.00011591,2]
[426479495,1782444644000,-160.0,0.0001186,2]
[426479494,1782444644000,-151.0,0.00011824,2]
[426479491,1782444644000,-152.0,0.00011824,2]
[426479492,1782444644000,-151.0,0.00011824,2]
[426479490,1782444644000,-153.0,0.00011824,2]
[426479493,1782444644000,-151.0,0.00011824,2]
[426479496,1782444644000,-151.0,0.0001194,2]
[426479497,1782444644000,-150.16307876,0.0001194,2]
[426479500,1782444644000,-150.99,0.00012087,2]
[426479486,1782444644000,-11250.0,0.00011687,2]
[426479501,1782444644000,-4828.71,0.00012087,2]
[426479499,1782444644000,-299.99,0.00012087,2]
[426479512,1782444644000,-405.7557061,0.00012419,2]
[426479511,1782444644000,-570.23,0.00012412,2]
[426479509,1782444644000,-150.0,0.00012289,2]
[426479510,1782444644000,-246.66,0.00012329,2]
[426479508,1782444644000,-16511.02625704,0.00012154,2]
[426479520,1782444644000,-293.04841364,0.00012697,2]
[426479505,1782444644000,-12500.0,0.000121,2]
[426479507,1782444644000,-433.0,0.00012144,2]
[426479498,1782444644000,-999.99,0.00012087,2]
[426479502,1782444644000,-925.07,0.00012087,2]
[426479506,1782444644000,-10444.24738643,0.00012143,2]
[426479503,1782444644000,-158.1,0.00012087,2]
[426479504,1782444644000,-1585.48,0.00012087,2]
[426479584,1782444645000,-174.24864797,0.0001346,2]
[426479591,1782444645000,-570.23,0.00013654,2]
[426479587,1782444645000,-1613.71847325,0.00013514,2]
[426479586,1782444645000,-200.0,0.0001349,2]
[426479593,1782444645000,-168.58023114,0.00013698,2]
[426479578,1782444645000,-593.0,0.00013358,2]
[426479595,1782444645000,-500.0,0.00013698,2]
[426479582,1782444645000,-196.79872,0.0001346,2]
[426479583,1782444645000,-196.79873,0.0001346,2]
[426479575,1782444645000,-537.71705443,0.00013333,2]
[426479579,1782444645000,-537.71705443,0.00013364,2]
[426479594,1782444645000,-500.0,0.00013698,2]
[426479585,1782444645000,-296.29301606,0.00013488,2]
[426479607,1782444645000,-534.63359193,0.00013698,2]
[426479588,1782444645000,-196.79872,0.00013599,2]
[426479592,1782444645000,-1613.71847325,0.00013685,2]
[426479590,1782444645000,-1613.71847325,0.00013634,2]
[426479597,1782444645000,-500.0,0.00013698,2]
[426479606,1782444645000,-500.0,0.00013698,2]
[426479596,1782444645000,-500.0,0.00013698,2]
[426479598,1782444645000,-500.0,0.00013698,2]
[426479608,1782444645000,-396.46734566,0.00013698,2]
[426479605,1782444645000,-500.0,0.00013698,2]
[426479600,1782444645000,-546.25176112,0.00013698,2]
[426479601,1782444645000,-500.0,0.00013698,2]
[426479603,1782444645000,-500.0,0.00013698,2]
[426479580,1782444645000,-501.00853723,0.00013389,2]
[426479599,1782444645000,-500.0,0.00013698,2]
[426479589,1782444645000,-151.0,0.00013599,2]
[426479581,1782444645000,-592.21844069,0.00013414,2]
[426479560,1782444645000,-1406.48,0.00013153,2]
[426479577,1782444645000,-24749.6525,0.00013346,2]
[426479604,1782444645000,-500.0,0.00013698,2]
[426479547,1782444645000,-10000.0,0.0001285,2]
[426479553,1782444645000,-15000.0,0.00012887,2]
[426479554,1782444645000,-3563.0,0.00013069,2]
[426479550,1782444645000,-1247.0,0.00012879,5]
[426479555,1782444645000,-6084.0,0.00013069,2]
[426479552,1782444645000,-1411.0,0.00012879,5]
[426479549,1782444645000,-10000.0,0.00012871,2]
[426479548,1782444645000,-6111.0,0.00012863,2]
[426479551,1782444645000,-1379.0,0.00012879,5]
[426479557,1782444645000,-112254.9532821,0.00013087,2]
[426479556,1782444645000,-456.34819234,0.00013077,2]
[426479559,1782444645000,-784.0,0.000131,2]
[426479571,1782444645000,-10444.24738643,0.00013246,2]
[426479569,1782444645000,-537.71705443,0.00013229,2]
[426479562,1782444645000,-537.71705443,0.00013176,2]
[426479561,1782444645000,-542.26997605,0.00013176,2]
[426479566,1782444645000,-855.65025592,0.000132,2]
[426479564,1782444645000,-222385.0,0.00013192,2]
[426479568,1782444645000,-537.71705443,0.00013219,2]
[426479563,1782444645000,-300.0,0.00013191,2]
[426479567,1782444645000,-537.71705443,0.00013214,2]
[426479565,1782444645000,-542.26997605,0.00013198,2]
[426479570,1782444645000,-537.71705443,0.00013237,2]
[426479572,1782444645000,-16511.02625704,0.00013253,2]
[426479574,1782444645000,-537.71705443,0.0001333,2]
[426479576,1782444645000,-11250.0,0.00013338,2]
[426479573,1782444645000,-192.00654318,0.00013279,2]
[426479558,1782444645000,-177.0,0.000131,2]
[426479602,1782444645000,-500.0,0.00013698,2]
[426479670,1782444645000,-16511.02625704,0.000149,2]
[426479622,1782444645000,-151.0,0.00013699,2]
[426479643,1782444645000,-500.0,0.00014,2]
[426479638,1782444645000,-500.0,0.00014,2]
[426479644,1782444645000,-250.0,0.00014,2]
[426479640,1782444645000,-500.0,0.00014,2]
[426479646,1782444645000,-1613.71847325,0.00014035,2]
[426479649,1782444645000,-1613.71847325,0.00014126,2]
[426479651,1782444645000,-1613.71847325,0.00014145,2]
[426479652,1782444645000,-200.0,0.00014185,2]
[426479650,1782444645000,-1613.71847325,0.00014126,2]
[426479656,1782444645000,-200.0,0.000145,2]
[426479653,1782444645000,-179.2,0.00014262,2]
[426479655,1782444645000,-16511.02625704,0.00014351,2]
[426479654,1782444645000,-10444.24738643,0.00014349,2]
[426479641,1782444645000,-500.0,0.00014,2]
[426479659,1782444645000,-225245.0,0.0001467,2]
[426479657,1782444645000,-151.0,0.0001463,2]
[426479661,1782444645000,-500.0,0.00014672,2]
[426479660,1782444645000,-500.0,0.00014672,2]
[426479671,1782444645000,-405.7557061,0.000149,2]
[426479662,1782444645000,-238827.5,0.00014673,2]
[426479663,1782444645000,-111478.2222816,0.00014673,2]
[426479610,1782444645000,-151.0,0.00013699,2]
[426479664,1782444645000,-17944.1874377,0.00014673,2]
[426479668,1782444645000,-570.23,0.00014895,2]
[426479665,1782444645000,-350.0,0.00014784,2]
[426479666,1782444645000,-1006.59,0.000148,2]
[426479669,1782444645000,-200.63975719,0.000149,2]
[426479667,1782444645000,-200.0,0.00014879,2]
[426479658,1782444645000,-208222.5,0.00014669,2]
[426479639,1782444645000,-500.0,0.00014,2]
[426479672,1782444645000,-10444.24738643,0.000149,2]
[426479642,1782444645000,-162.68,0.00014,2]
[426479621,1782444645000,-151.0,0.00013699,2]
[426479620,1782444645000,-151.0,0.00013699,2]
[426479612,1782444645000,-151.0,0.00013699,2]
[426479611,1782444645000,-151.0,0.00013699,2]
[426479613,1782444645000,-151.0,0.00013699,2]
[426479609,1782444645000,-200.0,0.00013699,2]
[426479617,1782444645000,-151.0,0.00013699,2]
[426479614,1782444645000,-151.0,0.00013699,2]
[426479616,1782444645000,-151.0,0.00013699,2]
[426479645,1782444645000,-1613.71847325,0.00014017,2]
[426479618,1782444645000,-151.0,0.00013699,2]
[426479619,1782444645000,-151.0,0.00013699,2]
[426479623,1782444645000,-268.80495289,0.00013699,2]
[426479626,1782444645000,-1613.71847325,0.00013773,2]
[426479615,1782444645000,-151.0,0.00013699,2]
[426479628,1782444645000,-16511.02625704,0.00013802,2]
[426479647,1782444645000,-12500.0,0.00014063,2]
[426479627,1782444645000,-10444.24738643,0.00013797,2]
[426479636,1782444645000,-1613.71847325,0.00013972,2]
[426479637,1782444645000,-1613.71847325,0.00013976,2]
[426479629,1782444645000,-1613.71847325,0.00013823,2]
[426479631,1782444645000,-1613.71847325,0.00013865,2]
[426479648,1782444645000,-1613.71847325,0.00014113,2]
[426479635,1782444645000,-1613.71847325,0.0001397,2]
[426479633,1782444645000,-302.36842558,0.00013891,2]
[426479624,1782444645000,-350.0,0.00013699,2]
[426479634,1782444645000,-1613.71847325,0.0001394,2]
[426479632,1782444645000,-1613.71847325,0.0001389,2]
[426479625,1782444645000,-1613.71847325,0.00013744,2]
[426479630,1782444645000,-700.0,0.00013824,2]
[426479673,1782444646000,-537.71705443,0.00014973,2]
[426479674,1782444646000,-24749.6525,0.0001499,2]
[426479679,1782444646000,-135693.96577532,0.00015,2]
[426479676,1782444646000,-456.34819234,0.0001499,2]
[426479678,1782444646000,-325.5915475,0.00014999,2]
[426479677,1782444646000,-500.0,0.00014999,2]
[426479693,1782444646000,-6532.49867048,0.00015,2]
[426479692,1782444646000,-216.48047229,0.0001186,2]
[426479675,1782444646000,-11250.0,0.0001499,2]
[426479694,1782444647000,-102778.99970211,0.00015,2]
[426479695,1782444647000,-6761.62,0.00015,2]
[426479696,1782444647000,-9648.67752455,0.00015,2]
[426479698,1782444649000,-3036.87541449,0.00013069,2]
[426479700,1782444649000,-652.0,0.00015,2]
[426479699,1782444649000,-119396.31317575,0.00015,2]
[426479697,1782444649000,-612.12458551,0.00013069,2]
[426479706,1782444660000,331101.06631993,9.937e-05,2]
[426479705,1782444660000,354832.14918007,9.937e-05,2]
[426479708,1782444698000,500.0,0.00037287,120]
[426479707,1782444698000,500.0,0.00037287,120]
[426479709,1782444699000,500.0,0.00037287,120]
[426479710,1782444699000,500.0,0.00037287,120]
[426479713,1782444700000,500.0,0.00037287,120]
[426479712,1782444700000,500.0,0.00037287,120]
[426479711,1782444700000,500.0,0.00037287,120]
[426479716,1782444701000,500.0,0.00037287,120]
[426479715,1782444701000,500.0,0.00037287,120]
[426479714,1782444701000,500.0,0.00037287,120]
[426479717,1782444702000,500.0,0.00037287,120]
[426479718,1782444702000,500.0,0.00037287,120]
[426479720,1782444702000,500.0,0.00037287,120]
[426479719,1782444702000,500.0,0.00037287,120]
[426479723,1782444703000,166.93054133,0.00037287,120]
[426479722,1782444703000,500.0,0.00037287,120]
[426479721,1782444703000,500.0,0.00037287,120]
[426479724,1782444727000,111082.9611,9.937e-05,2]
[426479725,1782444762000,500.0,9.936e-05,2]
[426479726,1782444768000,18368.6956,9.937e-05,2]
[426479727,1782444794000,227.0,0.0001,2]
[426479728,1782444798000,2000.0,9.937e-05,2]
[426479730,1782444824000,-216.48047229,0.00010036,2]
[426479729,1782444824000,-236.1770572,0.00010036,2]
[426479731,1782444824000,-160.0,0.00010036,2]
[426479732,1782444889000,500.0,0.00037287,120]
[426479735,1782444890000,500.0,0.00037287,120]
[426479734,1782444890000,500.0,0.00037287,120]
[426479733,1782444890000,500.0,0.00037287,120]
[426479736,1782444891000,500.0,0.00037287,120]
[426479737,1782444891000,500.0,0.00037287,120]
[426479738,1782444891000,500.0,0.00037287,120]
[426479742,1782444892000,500.0,0.00037287,120]
[426479741,1782444892000,500.0,0.00037287,120]
[426479740,1782444892000,500.0,0.00037287,120]
[426479739,1782444892000,500.0,0.00037287,120]
[426479745,1782444893000,639.76258398,0.00037287,120]
[426479744,1782444893000,500.0,0.00037287,120]
[426479743,1782444893000,500.0,0.00037287,120]
[426479747,1782444930000,10692.65130101,0.00037287,120]
[426479749,1782444981000,-109.34247051,0.00010635,2]
[426479748,1782444981000,-151.0,0.00010529,2]
[426479750,1782445045000,-250.0,0.00010635,2]
[426479751,1782445047000,-250.0,0.00010635,2]
[426479752,1782445048000,-250.0,0.00010635,2]
[426479753,1782445049000,-250.0,0.00010635,2]
[426479754,1782445050000,-250.0,0.00010635,2]
[426479755,1782445051000,-250.0,0.00010635,2]
[426479756,1782445052000,-250.0,0.00010635,2]
[426479757,1782445053000,-250.0,0.00010635,2]
[426479758,1782445054000,100000.0,0.00037287,120]
[426479759,1782445225000,378.0,0.0003725,120]
[426479761,1782445348000,838.22,0.0003725,120]
[426479760,1782445348000,838.22,0.0003725,120]
[426479763,1782445349000,838.22,0.0003725,120]
[426479762,1782445349000,838.22,0.0003725,120]
[426479766,1782445350000,838.22,0.0003725,120]
[426479765,1782445350000,838.22,0.0003725,120]
[426479764,1782445350000,838.22,0.0003725,120]
[426479767,1782445351000,838.22,0.0003725,120]
[426479769,1782445351000,838.22,0.0003725,120]
[426479770,1782445351000,838.22,0.0003725,120]
[426479768,1782445351000,838.22,0.0003725,120]
[426479772,1782445352000,838.22,0.0003725,120]
[426479771,1782445352000,838.22,0.0003725,120]
[426479778,1782445353000,838.22,0.0003725,120]
[426479777,1782445353000,838.22,0.0003725,120]
[426479776,1782445353000,838.22,0.0003725,120]
[426479773,1782445353000,838.22,0.0003725,120]
[426479774,1782445353000,838.22,0.0003725,120]
[426479779,1782445354000,838.22,0.0003725,120]
[426479781,1782445354000,838.22,0.0003725,120]
[426479780,1782445354000,838.22,0.0003725,120]
[426479783,1782445355000,838.22,0.0003725,120]
[426479782,1782445355000,838.22,0.0003725,120]
[426479784,1782445356000,838.35052399,0.0003725,120]
[426479785,1782445523000,274.16,9.992e-05,2]
[426479786,1782445523000,567.01,0.00031506,120]
[426479788,1782445606000,619.33091469,0.00037255,120]
[426479787,1782445606000,500.0,0.00037255,120]
[426479790,1782445775000,681.77054849,0.00037255,120]
[426479795,1782445785000,-150.0,0.0001031,2]
[426479794,1782445785000,-151.0,0.0001031,2]
[426479796,1782445785000,-150.0,0.0001031,2]
[426479791,1782445785000,-2412.49013889,0.000103,2]
[426479792,1782445785000,-151.0,0.0001031,2]
[426479793,1782445785000,-150.0,0.0001031,2]
[426479797,1782445785000,-152.0,0.0001031,2]
[426479800,1782445785000,-153.0,0.0001031,2]
[426479799,1782445785000,-151.0,0.0001031,2]
[426479805,1782445785000,-0.87622602,0.0001031,2]
[426479803,1782445785000,-127.31371467,0.0001031,2]
[426479804,1782445785000,-150.0,0.0001031,2]
[426479798,1782445785000,-151.0,0.0001031,2]
[426479801,1782445785000,-150.0,0.0001031,2]
[426479802,1782445785000,-22.68628533,0.0001031,2]
[426479806,1782445786000,2006.39923385,0.00037255,120]
[426479832,1782445834000,-150.0,0.00010413,2]
[426479838,1782445834000,-151.0,0.00010629,2]
[426479836,1782445834000,-150.0,0.00010629,2]
[426479834,1782445834000,-287.61332065,0.00010605,2]
[426479835,1782445834000,-151.0,0.00010629,2]
[426479837,1782445834000,-150.0,0.00010629,2]
[426479847,1782445834000,-151.0,0.00010635,2]
[426479840,1782445834000,-151.0,0.00010629,2]
[426479843,1782445834000,-150.0,0.00010629,2]
[426479839,1782445834000,-151.0,0.00010629,2]
[426479844,1782445834000,-4604.84994029,0.00010635,2]
[426479833,1782445834000,-225.0,0.00010516,2]
[426479842,1782445834000,-153.0,0.00010629,2]
[426479845,1782445834000,-572.60349431,0.00010635,2]
[426479846,1782445834000,-150.0,0.00010635,2]
[426479859,1782445834000,-216.48047229,0.0001065,2]
[426479849,1782445834000,-151.0,0.00010635,2]
[426479851,1782445834000,-151.0,0.00010635,2]
[426479852,1782445834000,-151.0,0.00010635,2]
[426479841,1782445834000,-151.0,0.00010629,2]
[426479831,1782445834000,-151.0,0.0001039,2]
[426479826,1782445834000,-250.0,0.00010311,2]
[426479829,1782445834000,-151.0,0.00010315,2]
[426479848,1782445834000,-152.0,0.00010635,2]
[426479810,1782445834000,-152.12377398,0.0001031,2]
[426479812,1782445834000,-37.27673906,0.0001031,2]
[426479811,1782445834000,-113.72326094,0.0001031,2]
[426479813,1782445834000,-153.0,0.0001031,2]
[426479814,1782445834000,-150.0,0.0001031,2]
[426479820,1782445834000,-151.0,0.0001031,2]
[426479824,1782445834000,-150.0,0.0001031,2]
[426479825,1782445834000,-150.0,0.0001031,2]
[426479815,1782445834000,-151.0,0.0001031,2]
[426479817,1782445834000,-150.0,0.0001031,2]
[426479823,1782445834000,-150.0,0.0001031,2]
[426479816,1782445834000,-151.0,0.0001031,2]
[426479819,1782445834000,-151.0,0.0001031,2]
[426479822,1782445834000,-250.0,0.0001031,2]
[426479818,1782445834000,-152.0,0.0001031,2]
[426479821,1782445834000,-153.0,0.0001031,2]
[426479827,1782445834000,-151.0,0.00010311,2]
[426479828,1782445834000,-151.0,0.00010312,2]
[426479830,1782445834000,-152.0,0.0001033,2]
[426479850,1782445834000,-153.0,0.00010635,2]
[426479869,1782445834000,-3312.86,0.00011616,2]
[426479854,1782445834000,-150.0,0.00010635,2]
[426479880,1782445834000,-181.4,0.00012288,2]
[426479878,1782445834000,-150.0,0.00012265,2]
[426479875,1782445834000,-42278.43,0.00012087,2]
[426479881,1782445834000,-2149.08,0.00012288,2]
[426479876,1782445834000,-150.99,0.00012087,2]
[426479886,1782445834000,-52.17022747,0.00012677,2]
[426479887,1782445834000,-500.0,0.00012795,2]
[426479893,1782445834000,-1000.0,0.00012892,2]
[426479885,1782445834000,-454.03977253,0.00012677,2]
[426479895,1782445834000,-138.50940025,0.00012893,2]
[426479888,1782445834000,-500.0,0.00012795,2]
[426479890,1782445834000,-500.0,0.00012795,2]
[426479892,1782445834000,-166.66,0.00012861,2]
[426479889,1782445834000,-500.0,0.00012795,2]
[426479894,1782445834000,-13.49059975,0.00012893,2]
[426479897,1782445834000,-152.0,0.00012893,2]
[426479896,1782445834000,-248.0,0.00012893,2]
[426479898,1782445834000,-248.0,0.00012893,2]
[426479899,1782445834000,-152.0,0.00012893,2]
[426479882,1782445834000,-166.66,0.00012341,2]
[426479877,1782445834000,-506.21,0.00012101,2]
[426479891,1782445834000,-498.1091029,0.00012795,2]
[426479884,1782445834000,-166.66,0.00012601,2]
[426479879,1782445834000,-200.0,0.00012281,2]
[426479856,1782445834000,-151.0,0.00010635,2]
[426479858,1782445834000,-285.05513885,0.0001064,2]
[426479855,1782445834000,-151.0,0.00010635,2]
[426479861,1782445834000,-193.0,0.00011341,2]
[426479871,1782445834000,-190.07,0.00012004,2]
[426479862,1782445834000,-300.0,0.00011341,2]
[426479860,1782445834000,-250.0,0.00011341,2]
[426479866,1782445834000,-506.21,0.00011525,2]
[426479867,1782445834000,-439.23,0.00011589,2]
[426479857,1782445834000,-151.0,0.00010635,2]
[426479868,1782445834000,-180.65,0.00011606,2]
[426479873,1782445834000,-4999.99,0.00012087,2]
[426479865,1782445834000,-500.0,0.00011341,2]
[426479872,1782445834000,-2130.75,0.00012087,2]
[426479874,1782445834000,-6814.67,0.00012087,2]
[426479870,1782445834000,-506.21,0.00011813,2]
[426479863,1782445834000,-193.0,0.00011341,2]
[426479853,1782445834000,-150.0,0.00010635,2]
[426479864,1782445834000,-300.0,0.00011341,2]
[426479883,1782445834000,-506.21,0.00012389,2]
[426479930,1782445835000,-150.33293359,0.00013069,2]
[426479924,1782445835000,-713.06105025,0.00013069,2]
[426479925,1782445835000,-186.93894975,0.00013069,2]
[426479920,1782445835000,-152.0,0.00013069,2]
[426479923,1782445835000,-151.70776136,0.00013069,2]
[426479926,1782445835000,-900.0,0.00013069,2]
[426479921,1782445835000,-150.0,0.00013069,2]
[426479927,1782445835000,-901.0,0.00013069,2]
[426479922,1782445835000,-151.0,0.00013069,2]
[426479929,1782445835000,-809.8550843,0.00013069,2]
[426479928,1782445835000,-150.0,0.00013069,2]
[426479931,1782445835000,-152.0,0.00013069,2]
[426479937,1782445835000,-173.692,0.00013237,2]
[426479913,1782445835000,-152.0,0.00012893,2]
[426479934,1782445835000,-160.0,0.00013085,2]
[426479919,1782445835000,-2437.12,0.0001299,2]
[426479915,1782445835000,-152.0,0.00012893,2]
[426479906,1782445835000,-292.0,0.00012893,2]
[426479909,1782445835000,-296.0,0.00012893,2]
[426479936,1782445835000,-1524.101,0.00013237,2]
[426479907,1782445835000,-152.0,0.00012893,2]
[426479900,1782445835000,-152.0,0.00012893,2]
[426479901,1782445835000,-296.0,0.00012893,2]
[426479902,1782445835000,-152.0,0.00012893,2]
[426479903,1782445835000,-152.0,0.00012893,2]
[426479905,1782445835000,-152.0,0.00012893,2]
[426479904,1782445835000,-152.0,0.00012893,2]
[426479908,1782445835000,-152.0,0.00012893,2]
[426479910,1782445835000,-152.0,0.00012893,2]
[426479912,1782445835000,-152.0,0.00012893,2]
[426479911,1782445835000,-152.0,0.00012893,2]
[426479917,1782445835000,-152.0,0.00012893,2]
[426479914,1782445835000,-292.0,0.00012893,2]
[426479918,1782445835000,-500.0,0.00012904,2]
[426479916,1782445835000,-152.0,0.00012893,2]
[426479935,1782445835000,-166.66,0.0001312,2]
[426479968,1782445835000,-500.0,0.00013696,2]
[426479942,1782445835000,-1112.07729015,0.00013566,2]
[426479960,1782445835000,-500.0,0.00013696,2]
[426479957,1782445835000,-500.0,0.00013696,2]
[426479963,1782445835000,-500.0,0.00013696,2]
[426479966,1782445835000,-500.0,0.00013696,2]
[426479962,1782445835000,-500.0,0.00013696,2]
[426479958,1782445835000,-500.0,0.00013696,2]
[426479961,1782445835000,-500.0,0.00013696,2]
[426479967,1782445835000,-394.97879312,0.00013696,2]
[426479964,1782445835000,-500.0,0.00013696,2]
[426479970,1782445835000,-232.202128,0.00013696,2]
[426479972,1782445835000,-500.0,0.00013696,2]
[426479973,1782445835000,-406.72176882,0.00013696,2]
[426479969,1782445835000,-500.0,0.00013696,2]
[426479971,1782445835000,-500.0,0.00013696,2]
[426479932,1782445835000,-151.0,0.00013069,2]
[426479959,1782445835000,-645.16848325,0.00013696,2]
[426479956,1782445835000,-500.0,0.00013696,2]
[426479965,1782445835000,-500.0,0.00013696,2]
[426479952,1782445835000,-248.39,0.00013644,2]
[426479939,1782445835000,-1353.8951493,0.00013399,2]
[426479933,1782445835000,-160.0,0.00013084,2]
[426479940,1782445835000,-6096.47,0.00013444,2]
[426479941,1782445835000,-200.0,0.0001349,2]
[426479938,1782445835000,-166.66,0.0001338,2]
[426479951,1782445835000,-166.66,0.0001364,2]
[426479955,1782445835000,-500.0,0.00013696,2]
[426479954,1782445835000,-500.0,0.00013696,2]
[426479944,1782445835000,-1277.0,0.00013566,2]